[Event "Reykjavik Chess Congress 2020"]
[Site "Reykjavik"]
[Date "2020.01.15"]
[Round "4.1"]
[White "Kjartansson, Gudmundur"]
[Black "Stefansson, Vignir Vatnar"]
[Result "1-0"]
[ECO "A20"]
[WhiteElo "2453"]
[BlackElo "2323"]
[Annotator "RC"]
[PlyCount "89"]
[EventDate "2020.01.05"]
[EventType "swiss"]
[EventCountry "ISL"]
[SourceTitle "playchess.com"]
[Source "ChessBase"]
[SourceQuality "1"]
[TimeControl "40/5400+30:900+30"]

1. c4 e5 2. g3 h5 3. Nf3 {[%emt 0:01:00]} Nc6 {[%emt 0:01:00]} 4. Nc3 {[%emt 0:00:30]} Be7 {[%emt 0:00:30]} 5. h4 {[%emt 0:00:30]} Bc5 {[%emt 0:00:30]} 6. e3 {[%emt 0:00:30]} d6 {[%emt 0:00:30]} 7. a3 {[%emt 0:00:30]} Bg4 {[%emt 0:00:30]} 8. b4 {[%emt 0:00:30]} Bb6 {[%emt 0:00:30]} 9. Bg2 {[%emt 0:00:30]} Nge7 {[%emt 0:00:30]} 10. Qc2 {[%emt 0:00:30]} a5 {[%emt 0:00:30]} 11. Rb1 {[%emt 0:00:30]} axb4 {[%emt 0:00:30]} 12. axb4 {[%emt 0:00:30]} Qd7 {[%emt 0:00:30]} 13. Ng5 {[%emt 0:00:30]} f6 {[%emt 0:00:30]} 14. Nge4 {[%emt 0:00:30]} Be6 {[%emt 0:00:30]} 15. d3 {[%emt 0:00:30]} d5 {[%emt 0:00:30]} 16. cxd5 {[%emt 0:00:30]} Nxd5 {[%emt 0:00:30]} 17. Nxd5 {[%emt 0:00:30]} Bxd5 {[%emt 0:00:30]} 18. O-O {[%emt 0:00:30]} Kf7 {[%emt 0:00:30]} 19. Bd2 {[%emt 0:00:30]} Ra2 {[%emt 0:00:30]} 20. Rb2 {[%emt 0:00:30]} Rxb2 {[%emt 0:00:30]} 21. Qxb2 {[%emt 0:00:30]} Ra8 {[%emt 0:00:30]} 22. Ra1 {[%emt 0:00:30]} Rxa1+ {[%emt 0:00:30]} 23. Qxa1 {[%emt 0:00:30]} Be6 {[%emt 0:00:30]} 24. Qd1 {[%emt 0:00:30]} Bg4 {[%emt 0:00:30]} 25. Qc2 {[%emt 0:00:30]} Be6 {[%emt 0:00:30]} 26. Bf3 {[%emt 0:00:30]} Bg4 {[%emt 0:00:30]} 27. Qa2+ {[%emt 0:00:30]} Kg6 {[%emt 0:00:30]} 28. Bxg4 {[%emt 0:00:30]} Qxg4 {[%emt 0:00:30]} 29. Qa8 {[%emt 0:00:30]} Qd7 {[%emt 0:00:30]} 30. Qxb7 {[%emt 0:00:30]} Nd8 {[%emt 0:00:30]} 31. Qa6 {[%emt 0:00:30]} Ne6 {[%emt 0:00:30]} 32. Qc4 {[%emt 0:00:30]} c6 {[%emt 0:00:30]} 33. Nc3 {[%emt 0:00:30]} Nc7 {[%emt 0:00:30]} 34. Qe4+ {[%emt 0:00:30]} Kh6 {[%emt 0:00:30]} 35. Qc4 {[%emt 0:00:30]} Nb5 {[%emt 0:00:30]} 36. Na4 {[%emt 0:00:30]} Ba7 {[%emt 0:00:30]} 37. Kg2 {[%emt 0:00:30]} Kh7 {[%emt 0:00:30]} 38. Nc3 {[%emt 0:00:30]} Nd6 {[%emt 0:00:30]} 39. Qb3 {[%emt 0:00:30]} g5 {[%emt 0:00:30]} 40. hxg5 {[%emt 0:00:30]} fxg5 {[%emt 0:00:30]} 41. Qd1 {[%emt 0:15:30]} g4 {[%emt 0:15:30]} 42. Qa1 {[%emt 0:00:30]} Qf7 {[%emt 0:00:30]} 43. Qa6 {[%emt 0:00:30]} Qc7 {[%emt 0:00:30]} 44. Kf1 {[%emt 0:00:30]} Kg6 {[%emt 0:00:30]} 45. b5 {[%emt 0:00:30]} 1-0

[Event "Reykjavik Chess Congress 2020"]
[Site "Reykjavik"]
[Date "2020.01.15"]
[Round "4.4"]
[White "Briem, Stephan"]
[Black "Fridjonsson, Julius"]
[Result "0-1"]
[ECO "D10"]
[WhiteElo "2197"]
[BlackElo "2117"]
[Annotator "ChessBase"]
[PlyCount "136"]
[EventDate "2020.01.05"]
[EventType "swiss"]
[EventCountry "ISL"]
[SourceTitle "playchess.com"]
[Source "ChessBase"]
[SourceQuality "1"]
[TimeControl "40/5400+30:900+30"]

1. d4 {[%emt 0:00:00]} d5 {[%emt 0:00:00]} 2. c4 {[%emt 0:00:17]} c6 {[%emt 0:00:00]} 3. Nc3 {[%emt 0:00:32]} Nf6 {[%emt 0:00:00]} 4. cxd5 {[%emt 0:00:34]} cxd5 {[%emt 0:00:07]} 5. f3 {[%emt 0:00:27]} Qb6 {[%emt 0:00:57]} 6. e4 {[%emt 0:01:02]} dxe4 {[%emt 0:01:20]} 7. fxe4 {[%emt 0:00:36]} e5 {[%emt 0:00:37]} 8. Bb5+ {[%emt 0:02:24]} Nc6 {[%emt 0:01:48]} 9. d5 {[%emt 0:01:46]} Bb4 {[%emt 0:00:19]} 10. Qd3 {[%emt 0:01:57]} a6 {[%emt 0:23:11]} 11. Ba4 {[%emt 0:02:20]} Qa5 {[%emt 0:02:20]} 12. Bd1 {[%emt 0:07:27]} Nd4 {[%emt 0:04:29]} 13. Nge2 {[%emt 0:00:57]} O-O {[%emt 0:09:46]} 14. O-O {[%emt 0:19:15]} Nxe2+ {[%emt 0:06:23]} 15. Bxe2 {[%emt 0:03:37]} Ne8 {[%emt 0:01:23]} 16. Be3 {[%emt 0:08:43]} Bd7 {[%emt 0:01:32]} 17. Rac1 {[%emt 0:05:30]} Rc8 {[%emt 0:00:33]} 18. Rfe1 {[%emt 0:07:48]} Nd6 {[%emt 0:02:05]} 19. Qb1 {[%emt 0:08:04]} Rc7 {[%emt 0:05:36]} 20. a3 {[%emt 0:03:32]} Bc5 {[%emt 0:01:18]} 21. Bd3 {[%emt 0:07:30]} Rfc8 {[%emt 0:03:17]} 22. Kh1 {[%emt 0:01:19]} Bxa3 {[%emt 0:07:23]} 23. Ne2 {[%emt 0:07:34]} Bb4 {[%emt 0:03:17]} 24. Rxc7 {[%emt 0:01:35]} Rxc7 {[%emt 0:01:37]} 25. Rf1 {[%emt 0:03:12]} Bc5 {[%emt 0:01:25]} 26. Bg5 {[%emt 0:03:25]} f6 {[%emt 0:00:38]} 27. Bh4 {[%emt 0:01:13]} Be3 {[%emt 0:00:33]} 28. Be1 {[%emt 0:00:46]} Qa4 {[%emt 0:03:02]} 29. h3 {[%emt 0:00:34]} Qb3 {[%emt 0:03:40]} 30. Bc3 {[%emt 0:00:17]} Bb5 {[%emt 0:02:14]} 31. Ng3 {[%emt 0:00:38]} Bf4 {[%emt 0:01:19]} 32. Nh5 {[%emt 0:00:18]} Bh6 {[%emt 0:00:26]} 33. Rf3 {[%emt 0:00:47]} Bc4 {[%emt 0:02:39]} 34. Qf1 {[%emt 0:00:28]} Bxd3 {[%emt 0:00:18]} 35. Rxd3 {[%emt 0:00:32]} Qc4 {[%emt 0:00:38]} 36. Qd1 {[%emt 0:00:30]} Qxe4 {[%emt 0:00:37]} 37. Rg3 {[%emt 0:00:21]} Kh8 {[%emt 0:00:54]} 38. Qb3 {[%emt 0:00:35]} Qc4 {[%emt 0:01:01]} 39. Qa3 {[%emt 0:00:30]} Qxd5 {[%emt 0:00:51]} 40. Qa4 {[%emt 0:00:00]} Qc4 {[%emt 0:00:00]} 41. Qd1 {[%emt 0:01:23]} Qe6 {[%emt 0:06:55]} 42. Rd3 {[%emt 0:08:25]} Ne8 {[%emt 0:00:11]} 43. Rd8 {[%emt 0:01:57]} Rc8 {[%emt 0:00:07]} 44. Rd7 {[%emt 0:00:58]} b5 {[%emt 0:00:14]} 45. Rb7 {[%emt 0:03:21]} Qc6 {[%emt 0:02:42]} 46. Re7 {[%emt 0:00:59]} g6 {[%emt 0:04:09]} 47. Ng3 {[%emt 0:01:13]} Bf8 {[%emt 0:00:28]} 48. Rf7 {[%emt 0:00:59]} Kg8 {[%emt 0:00:29]} 49. Rd7 {[%emt 0:00:20]} Nd6 {[%emt 0:01:49]} 50. Qg4 {[%emt 0:00:46]} Qc4 {[%emt 0:02:10]} 51. Nh5 {[%emt 0:00:36]} Ne8 {[%emt 0:01:00]} 52. Qg3 {[%emt 0:00:38]} Qf1+ {[%emt 0:00:36]} 53. Kh2 {[%emt 0:00:05]} Qf5 {[%emt 0:00:06]} 54. Ra7 {[%emt 0:00:56]} Qxh5 {[%emt 0:00:46]} 55. Qd3 {[%emt 0:00:28]} Qf5 {[%emt 0:00:22]} 56. Qd5+ {[%emt 0:00:13]} Kh8 {[%emt 0:00:31]} 57. Qf7 {[%emt 0:00:25]} Ng7 {[%emt 0:01:45]} 58. Rxa6 {[%emt 0:00:52]} Nh5 {[%emt 0:03:57]} 59. Ra7 {[%emt 0:00:29]} Bg7 {[%emt 0:00:43]} 60. Rc7 {[%emt 0:00:32]} Rf8 {[%emt 0:00:18]} 61. Qe7 {[%emt 0:00:32]} Rg8 {[%emt 0:00:49]} 62. Qc5 {[%emt 0:00:27]} Qf4+ {[%emt 0:00:33]} 63. Kg1 {[%emt 0:00:26]} Qc1+ {[%emt 0:00:58]} 64. Kh2 {[%emt 0:00:06]} Qf4+ {[%emt 0:00:02]} 65. Kg1 {[%emt 0:00:01]} Ng3 {[%emt 0:00:26]} 66. Rc8 {[%emt 0:00:59]} Ne2+ {[%emt 0:00:33]} 67. Kh1 {[%emt 0:00:01]} h5 {[%emt 0:02:43]} 68. Rc6 {[%emt 0:01:18]} Ng3+ {[%emt 0:01:49]} 0-1

[Event "Reykjavik Chess Congress 2020"]
[Site "Reykjavik"]
[Date "2020.01.19"]
[Round "5.1"]
[White "Bjornsson, Sigurbjorn"]
[Black "Kjartansson, Gudmundur"]
[Result "1-0"]
[ECO "C48"]
[WhiteElo "2331"]
[BlackElo "2453"]
[Annotator "ChessBase"]
[PlyCount "101"]
[EventDate "2020.01.05"]
[EventType "swiss"]
[EventCountry "ISL"]
[SourceTitle "playchess.com"]
[Source "ChessBase"]
[SourceQuality "1"]
[TimeControl "40/5400+30:900+30"]

1. e4 {[%emt 0:00:00]} e5 {[%emt 0:00:00]} 2. Nf3 {[%emt 0:00:00]} Nc6 {[%emt 0:00:00]} 3. Nc3 {[%emt 0:00:05]} Nf6 {[%emt 0:00:03]} 4. Bb5 {[%emt 0:00:26]} Bd6 {[%emt 0:03:30]} 5. O-O {[%emt 0:00:42]} O-O {[%emt 0:00:17]} 6. d3 {[%emt 0:02:24]} Ne7 {[%emt 0:00:31]} 7. d4 {[%emt 0:05:36]} Ng6 {[%emt 0:00:55]} 8. dxe5 {[%emt 0:02:25]} Nxe5 {[%emt 0:00:45]} 9. Nxe5 {[%emt 0:07:53]} Bxe5 {[%emt 0:00:05]} 10. Bd3 {[%emt 0:01:15]} Re8 {[%emt 0:29:30]} 11. Bg5 {[%emt 0:19:15]} c6 {[%emt 0:12:01]} 12. Kh1 {[%emt 0:09:08]} Qc7 {[%emt 0:16:41]} 13. f4 {[%emt 0:08:40]} Bxc3 {[%emt 0:01:02]} 14. e5 {[%emt 0:00:33]} Bxe5 {[%emt 0:12:29]} 15. fxe5 {[%emt 0:00:09]} Qxe5 {[%emt 0:00:23]} 16. Bxf6 {[%emt 0:00:51]} gxf6 {[%emt 0:00:04]} 17. Rf5 {[%emt 0:09:33]} Qxb2 {[%emt 0:00:38]} 18. Rb1 {[%emt 0:03:40]} Qd4 {[%emt 0:06:38]} 19. Qh5 {[%emt 0:18:33]} d5 {[%emt 0:01:09]} 20. Rf3 {[%emt 0:02:08]} f5 {[%emt 0:06:38]} 21. Rh3 {[%emt 0:02:33]} Kf8 {[%emt 0:02:09]} 22. Qh6+ {[%emt 0:00:53]} Ke7 {[%emt 0:00:38]} 23. Re3+ {[%emt 0:03:10]} Be6 {[%emt 0:00:59]} 24. c3 {[%emt 0:01:02]} Qa4 {[%emt 0:03:26]} 25. Bxf5 {[%emt 0:00:41]} Kd6 {[%emt 0:00:18]} 26. Rbe1 {[%emt 0:00:47]} Kc7 {[%emt 0:00:12]} 27. Bxe6 {[%emt 0:00:29]} Rxe6 {[%emt 0:00:51]} 28. Rxe6 {[%emt 0:00:02]} fxe6 {[%emt 0:00:04]} 29. Qg7+ {[%emt 0:00:35]} Kd6 {[%emt 0:01:34]} 30. Qe5+ {[%emt 0:00:26]} Kc5 {[%emt 0:00:08]} 31. Qe3+ {[%emt 0:00:41]} Kb5 {[%emt 0:00:19]} 32. Qe2+ {[%emt 0:00:49]} Qc4 {[%emt 0:00:21]} 33. Qb2+ {[%emt 0:00:29]} Ka5 {[%emt 0:01:26]} 34. Qxb7 {[%emt 0:00:11]} Rg8 {[%emt 0:00:41]} 35. Rb1 {[%emt 0:00:50]} Qc5 {[%emt 0:00:33]} 36. Qc7+ {[%emt 0:00:33]} Ka6 {[%emt 0:00:24]} 37. Qb7+ {[%emt 0:00:10]} Ka5 {[%emt 0:00:01]} 38. Qc7+ {[%emt 0:00:28]} Ka6 {[%emt 0:00:19]} 39. Qf7 {[%emt 0:00:50]} Rf8 {[%emt 0:00:29]} 40. Qb7+ {[%emt 0:00:00]} Ka5 {[%emt 0:00:00]} 41. Qc7+ {[%emt 0:05:18]} Ka4 {[%emt 0:09:42]} 42. Qxh7 {[%emt 0:01:37]} Rf2 {[%emt 0:05:13]} 43. Qh4+ {[%emt 0:03:12]} Ka5 {[%emt 0:00:46]} 44. h3 {[%emt 0:00:38]} e5 {[%emt 0:01:27]} 45. Qd8+ {[%emt 0:00:38]} Ka4 {[%emt 0:00:17]} 46. Qc8 {[%emt 0:01:09]} a5 {[%emt 0:01:35]} 47. Qg4+ {[%emt 0:00:45]} Qc4 {[%emt 0:00:39]} 48. Qd1+ {[%emt 0:00:19]} Ka3 {[%emt 0:00:02]} 49. Rb3+ {[%emt 0:00:19]} Ka4 {[%emt 0:00:06]} 50. Rb4+ {[%emt 0:00:32]} Ka3 {[%emt 0:00:03]} 51. Qa4# {[%emt 0:00:14]} 1-0

[Event "Reykjavik Chess Congress 2020"]
[Site "Reykjavik"]
[Date "2020.01.19"]
[Round "5.3"]
[White "Mai, Aron Thor"]
[Black "Ragnarsson, Johann"]
[Result "0-1"]
[ECO "B11"]
[WhiteElo "2167"]
[BlackElo "1946"]
[Annotator "ChessBase"]
[PlyCount "42"]
[EventDate "2020.01.05"]
[EventType "swiss"]
[EventCountry "ISL"]
[SourceTitle "playchess.com"]
[Source "ChessBase"]
[SourceQuality "1"]
[TimeControl "40/5400+30:900+30"]

1. e4 {[%emt 0:00:38]} c6 {[%emt 0:00:00]} 2. Nc3 {[%emt 0:00:23]} d5 {[%emt 0:00:46]} 3. Nf3 {[%emt 0:00:06]} Bg4 {[%emt 0:00:18]} 4. h3 {[%emt 0:01:25]} Bxf3 {[%emt 0:00:14]} 5. Qxf3 {[%emt 0:00:07]} dxe4 {[%emt 0:00:34]} 6. Nxe4 {[%emt 0:00:35]} Nd7 {[%emt 0:00:13]} 7. Bc4 {[%emt 0:03:52]} Ne5 {[%emt 0:05:17]} 8. Qb3 {[%emt 0:01:01]} Nxc4 {[%emt 0:00:17]} 9. Qxc4 {[%emt 0:00:05]} Qd5 {[%emt 0:00:07]} 10. Qe2 {[%emt 0:02:00]} f5 {[%emt 0:06:51]} 11. Ng3 {[%emt 0:00:09]} Qxg2 {[%emt 0:00:19]} 12. d3 {[%emt 0:00:37]} Qd5 {[%emt 0:07:44]} 13. c4 {[%emt 0:03:21]} Qd7 {[%emt 0:00:50]} 14. Bf4 {[%emt 0:03:37]} O-O-O {[%emt 0:05:18]} 15. Qe5 {[%emt 0:21:17]} Qd6 {[%emt 0:06:28]} 16. Qe3 {[%emt 0:13:21]} Qxd3 {[%emt 0:25:01]} 17. Qxa7 {[%emt 0:01:22]} e5 {[%emt 0:00:28]} 18. Qa8+ {[%emt 0:04:38]} Kd7 {[%emt 0:06:12]} 19. Qxb7+ {[%emt 0:00:37]} Ke6 {[%emt 0:00:13]} 20. Qxc6+ {[%emt 0:00:41]} Kf7 {[%emt 0:00:16]} 21. Bg5 {[%emt 0:08:32]} Bb4+ {[%emt 0:00:26]} 0-1

[Event "Reykjavik Chess Congress 2020"]
[Site "Reykjavik"]
[Date "2020.01.19"]
[Round "5.4"]
[White "Baldursson, Haraldur"]
[Black "Hardarson, Petur Palmi"]
[Result "0-1"]
[ECO "D00"]
[WhiteElo "1902"]
[BlackElo "2027"]
[Annotator "NA"]
[PlyCount "119"]
[EventDate "2020.01.05"]
[EventType "swiss"]
[EventCountry "ISL"]
[SourceTitle "playchess.com"]
[Source "ChessBase"]
[SourceQuality "1"]
[TimeControl "40/5400+30:900+30"]

1. d4 {[%emt 0:01:26]} Nf6 {[%emt 0:00:00]} 2. Nf3 {[%emt 0:00:19]} g6 {[%emt 0:00:26]} 3. Nc3 {[%emt 0:02:37]} d5 {[%emt 0:01:30]} 4. Bf4 {[%emt 0:01:37]} Bg7 {[%emt 0:01:39]} 5. e3 {[%emt 0:02:26]} Bg4 {[%emt 0:02:18]} 6. Bd3 {[%emt 0:04:40] D00: 1 d4 d5: Unusual lines} (6. Nb5 Na6 7. h3 Bxf3 8. Qxf3 c6 9. Na3 O-O 10. c3 Qb6 11. Rb1 Nd7 12. Bxa6 Qxa6 13. Qe2 Qa5 {0-1 (63) Repka,C (2473)-Kozul,Z (2619) Sibenik 2016}) 6... O-O {[%emt 0:01:50]} 7. h3 {[%emt 0:01:57]} Bxf3 {[%emt 0:00:52]} 8. Qxf3 {[%emt 0:00:11]} e6 {[%emt 0:05:35]} 9. g4 $146 {[%emt 0:04:40]} ({Predecessor:} 9. O-O Nbd7 10. a4 c5 11. dxc5 e5 12. Bg5 e4 13. Qe2 exd3 14. Qxd3 Nxc5 {0-1 (54) Linkevicius,V-Viliusis,N (1097) Kaunas 2017}) 9... c5 {[%emt 0:07:15]} 10. dxc5 {[%emt 0:12:50]} Ne8 {[%emt 0:02:43]} 11. e4 {[%emt 0:13:27]} d4 {[%emt 0:02:18]} 12. Ne2 {[%emt 0:11:32]} Qa5+ {[%emt 0:05:52]} 13. Kf1 {[%emt 0:03:27]} Qxc5 {[%emt 0:01:33]} 14. h4 {[%emt 0:02:31]} Nc6 {[%emt 0:03:33]} 15. h5 {[%emt 0:10:29]} g5 {[%emt 0:08:55]} 16. h6 {[%emt 0:03:20]} Bf6 {[%emt 0:03:10]} 17. Rh5 {[%emt 0:01:59]} Ne5 {[%emt 0:05:05]} 18. Bxe5 {[%emt 0:03:17]} Qxe5 {[%emt 0:00:23]} 19. Qg3 {[%emt 0:01:44]} Qxg3 {[%emt 0:08:39]} 20. Nxg3 {[%emt 0:00:19]} Kh8 {[%emt 0:01:01]} 21. Kg2 {[%emt 0:05:51]} Rg8 {[%emt 0:02:16]} 22. Re1 {[%emt 0:03:05]} Be5 {[%emt 0:01:02]} 23. Ne2 {[%emt 0:00:31]} Nf6 {[%emt 0:00:48]} 24. Rhh1 {[%emt 0:06:27]} Nxg4 {[%emt 0:00:47]} 25. f3 {[%emt 0:00:48]} Ne3+ {[%emt 0:04:24]} 26. Kf2 {[%emt 0:00:28]} Bf6 {[%emt 0:05:24]} 27. e5 {[%emt 0:00:55]} Bxe5 {[%emt 0:01:04]} 28. c3 {[%emt 0:00:01]} Nd5 {[%emt 0:02:04]} 29. cxd4 {[%emt 0:00:11]} Bc7 {[%emt 0:02:13]} 30. Rc1 {[%emt 0:00:13]} Bb6 {[%emt 0:00:25]} 31. Rc4 {[%emt 0:00:32]} f5 {[%emt 0:01:36]} 32. a4 {[%emt 0:00:22]} g4 {[%emt 0:01:13]} 33. b4 {[%emt 0:00:35]} a5 {[%emt 0:01:28]} 34. bxa5 {[%emt 0:00:12]} Rxa5 {[%emt 0:00:23]} (34... Bxa5 $17 35. Rc2 Bb6 36. fxg4 fxg4) 35. fxg4 {[%emt 0:00:10]} fxg4 {[%emt 0:02:54]} 36. Rhc1 {[%emt 0:00:13]} Raa8 {[%emt 0:00:33]} 37. Be4 {[%emt 0:01:04]} Raf8+ {[%emt 0:00:56]} 38. Kg1 {[%emt 0:00:20]} Rf6 {[%emt 0:03:28]} 39. Rc8 {[%emt 0:00:14]} Rgf8 {[%emt 0:01:46]} 40. Bxd5 {[%emt 0:00:00]} exd5 {[%emt 0:00:00]} 41. Rxf8+ {[%emt 0:01:33]} Rxf8 {[%emt 0:00:28]} 42. Rb1 {[%emt 0:00:26]} Rf6 {[%emt 0:00:32]} 43. a5 {[%emt 0:02:42]} Bxa5 {[%emt 0:00:55]} 44. Rxb7 {[%emt 0:00:12]} Rxh6 {[%emt 0:01:09]} 45. Rb5 {[%emt 0:00:12]} Bc7 {[%emt 0:06:29]} 46. Rxd5 {[%emt 0:01:13]} Rg6 {[%emt 0:00:54]} 47. Kg2 {[%emt 0:01:35]} h6 {[%emt 0:01:23]} 48. Ng3 {[%emt 0:01:08]} Rc6 {[%emt 0:02:44]} 49. Rc5 $2 {[%emt 0:02:16]} (49. Nf5 $15) 49... Rxc5 {[%emt 0:00:46]} 50. dxc5 {[%emt 0:00:07]} Kh7 {[%emt 0:05:12]} 51. Nf5 {[%emt 0:06:29]} h5 {[%emt 0:02:04]} (51... Kg6 $5 52. Ne3 $8 Kg5 $11) 52. Ne3 {[%emt 0:01:40]} Kg6 {[%emt 0:00:56]} 53. c6 {[%emt 0:02:19]} Be5 {[%emt 0:00:45]} 54. Nd5 {[%emt 0:01:08]} h4 {[%emt 0:00:32]} (54... Kf5 $5 55. c7 $8 Bxc7 56. Nxc7 h4 $11) 55. c7 {[%emt 0:00:41]} h3+ {[%emt 0:00:13]} 56. Kh1 {[%emt 0:01:46] [#]} (56. Kg1 $11 Bxc7 57. Nxc7) 56... g3 $1 {[%emt 0:04:36]} 57. Ne7+ {[%emt 0:00:54]} (57. c8=Q $17 g2+ 58. Kg1 Bd4+ 59. Kh2 g1=Q+ 60. Kxh3) 57... Kg5 {[%emt 0:00:12]} 58. c8=Q {[%emt 0:00:14]} g2+ {[%emt 0:00:04]} 59. Kg1 {[%emt 0:00:01]} Bd4+ 60. Kh2 {[%emt 0:00:04]} 0-1

[Event "Reykjavik Chess Congress 2020"]
[Site "Reykjavik"]
[Date "2020.01.19"]
[Round "5.6"]
[White "Briem, Benedikt"]
[Black "Briem, Stephan"]
[Result "1-0"]
[ECO "A44"]
[WhiteElo "1841"]
[BlackElo "2197"]
[Annotator "ChessBase"]
[PlyCount "59"]
[EventDate "2020.01.05"]
[EventType "swiss"]
[EventCountry "ISL"]
[SourceTitle "playchess.com"]
[Source "ChessBase"]
[SourceQuality "1"]
[TimeControl "40/5400+30:900+30"]

1. d4 {[%emt 0:00:00]} Nf6 {[%emt 0:00:00]} 2. Nc3 {[%emt 0:00:00]} c5 {[%emt 0:03:50]} 3. d5 {[%emt 0:00:00]} e5 {[%emt 0:08:39]} 4. g3 {[%emt 0:08:01]} d6 {[%emt 0:00:09]} 5. Bg2 {[%emt 0:00:52]} Be7 {[%emt 0:01:09]} 6. e4 {[%emt 0:04:08]} Nbd7 {[%emt 0:05:20]} 7. Nge2 {[%emt 0:00:37]} Nf8 {[%emt 0:03:02]} 8. O-O {[%emt 0:01:09]} Ng6 {[%emt 0:01:09]} 9. h3 {[%emt 0:00:38]} O-O {[%emt 0:00:41]} 10. Qd3 {[%emt 0:02:09]} Ne8 {[%emt 0:02:34]} 11. g4 {[%emt 0:02:29]} Bg5 {[%emt 0:01:57]} 12. Bxg5 {[%emt 0:03:14]} Qxg5 {[%emt 0:00:41]} 13. Qg3 {[%emt 0:02:58]} Bd7 {[%emt 0:14:00]} 14. a4 {[%emt 0:01:39]} Nf6 {[%emt 0:00:18]} 15. f4 {[%emt 0:02:21]} exf4 {[%emt 0:02:10]} 16. Nxf4 {[%emt 0:01:32]} Ne5 {[%emt 0:07:16]} 17. Nd3 {[%emt 0:01:48]} h5 {[%emt 0:04:54]} 18. Nb5 {[%emt 0:05:45]} Ne8 {[%emt 0:07:46]} 19. Nxd6 {[%emt 0:02:19]} Nxd3 {[%emt 0:10:10]} 20. cxd3 {[%emt 0:00:32]} hxg4 {[%emt 0:08:48]} 21. Nxb7 {[%emt 0:06:27]} Qh6 {[%emt 0:07:35]} 22. Nxc5 {[%emt 0:02:09]} Bc8 {[%emt 0:00:56]} 23. hxg4 {[%emt 0:01:21]} Bxg4 {[%emt 0:00:09]} 24. Rf4 {[%emt 0:03:48]} Bh5 {[%emt 0:02:35]} 25. Nd7 {[%emt 0:01:24]} Rc8 {[%emt 0:03:44]} 26. Raf1 {[%emt 0:03:46]} Qd6 {[%emt 0:01:27]} 27. Nxf8 {[%emt 0:00:40]} Qxf8 {[%emt 0:00:05]} 28. Rh4 {[%emt 0:00:43]} Bg6 {[%emt 0:00:45]} 29. Qh3 {[%emt 0:00:47]} Qc5+ {[%emt 0:00:03]} 30. d4 {[%emt 0:00:29]} 1-0

[Event "Reykjavik Chess Congress 2020"]
[Site "Reykjavik"]
[Date "2020.01.22"]
[Round "6.2"]
[White "Kjartansson, Gudmundur"]
[Black "Ragnarsson, Johann"]
[Result "*"]
[ECO "A07"]
[WhiteElo "2453"]
[BlackElo "1946"]
[Annotator "RC"]
[PlyCount "57"]
[EventDate "2020.01.05"]
[EventType "swiss"]
[EventCountry "ISL"]
[SourceTitle "playchess.com"]
[Source "ChessBase"]
[SourceQuality "1"]
[TimeControl "40/5400+30:900+30"]

1. Nf3 {[%emt 0:00:00]} d5 {[%emt 0:00:22]} 2. g3 {[%emt 0:00:00]} Nf6 {[%emt 0:00:57]} 3. Bg2 {[%emt 0:00:00]} Bf5 {[%emt 0:00:15]} 4. c4 {[%emt 0:01:04]} d4 {[%emt 0:01:58]} 5. d3 {[%emt 0:01:25]} Nc6 {[%emt 0:01:36]} 6. b4 {[%emt 0:00:33]} e6 {[%emt 0:27:01]} 7. a3 {[%emt 0:02:07]} Bg4 {[%emt 0:15:56]} 8. b5 {[%emt 0:10:36]} Bxf3 {[%emt 0:09:03]} 9. Bxf3 {[%emt 0:00:15]} Na5 {[%emt 0:00:06]} 10. Qa4 {[%emt 0:01:07]} b6 {[%emt 0:00:06]} 11. Bd2 {[%emt 0:01:16]} Bd6 {[%emt 0:06:02]} 12. Bxa5 {[%emt 0:01:56]} bxa5 {[%emt 0:00:02]} 13. Bc6+ {[%emt 0:14:49]} Kf8 {[%emt 0:01:58]} 14. Nd2 {[%emt 0:00:47]} Rb8 {[%emt 0:02:50]} 15. Nb3 {[%emt 0:02:43]} Ng4 {[%emt 0:01:29]} 16. Qxa5 {[%emt 0:03:28]} h5 {[%emt 0:02:59]} 17. Qxa7 {[%emt 0:01:27]} h4 {[%emt 0:06:48]} 18. Qxd4 {[%emt 0:01:32]} hxg3 {[%emt 0:00:17]} 19. Qxg4 {[%emt 0:02:03]} Qf6 {[%emt 0:00:20]} 20. hxg3 {[%emt 0:08:19]} Rxh1+ {[%emt 0:01:19]} 21. Bxh1 {[%emt 0:00:05]} Qc3+ {[%emt 0:00:05]} 22. Kf1 {[%emt 0:00:10]} Qxb3 {[%emt 0:00:06]} 23. Qd4 {[%emt 0:05:34]} f6 {[%emt 0:05:39]} 24. a4 {[%emt 0:04:14]} Kg8 {[%emt 0:03:55]} 25. Qe3 {[%emt 0:00:23]} Qb2 {[%emt 0:05:09]} 26. Qxe6+ {[%emt 0:01:24]} Kh8 {[%emt 0:00:59]} 27. Qh3+ {[%emt 0:00:12]} Kg8 {[%emt 0:00:02]} 28. Bd5+ {[%emt 0:00:04]} Kf8 {[%emt 0:00:07]} 29. Qe6 {[%emt 0:00:56]} *